[Event "Early-Titled-Tuesday-Blitz-September-12-2023"]
[Site "Chess.com"]
[Date "2023.09.12"]
[Round "6"]
[White "dadice10"]
[Black "ljm509"]
[Result "0-1"]
[WhiteElo "2204"]
[BlackElo "2346"]
[TimeControl "180+1"]
[EndTime "9:05:04 PDT"]
[Termination "ljm509 won by resignation"]

1. e4 {[%clk 0:03:00.9]} 1... e6 {[%clk 0:02:33]} 2. d4 {[%clk 0:02:58.8]} 2...
d5 {[%clk 0:02:32.7]} 3. Nc3 {[%clk 0:02:58.5]} 3... dxe4 {[%clk 0:02:32.3]} 4.
Nxe4 {[%clk 0:02:58.3]} 4... Nd7 {[%clk 0:02:33.2]} 5. Nf3 {[%clk 0:02:56.2]}
5... Ngf6 {[%clk 0:02:33.3]} 6. Nxf6+ {[%clk 0:02:55.4]} 6... Nxf6 {[%clk
0:02:34.2]} 7. Bg5 {[%clk 0:02:54.3]} 7... h6 {[%clk 0:02:34.1]} 8. Be3 {[%clk
0:02:52.3]} 8... Be7 {[%clk 0:02:28.9]} 9. Bd3 {[%clk 0:02:51.8]} 9... Nd5
{[%clk 0:02:29.4]} 10. Qe2 {[%clk 0:02:51.5]} 10... Nxe3 {[%clk 0:02:29.3]} 11.
Qxe3 {[%clk 0:02:50.6]} 11... c5 {[%clk 0:02:28.2]} 12. O-O-O {[%clk 0:02:44.5]}
12... Qa5 {[%clk 0:02:27.7]} 13. Kb1 {[%clk 0:02:41.9]} 13... cxd4 {[%clk
0:02:21.9]} 14. Nxd4 {[%clk 0:02:35.3]} 14... O-O {[%clk 0:02:19]} 15. h4 {[%clk
0:02:13.8]} 15... Bf6 {[%clk 0:02:12.9]} 16. Qe4 {[%clk 0:02:07.3]} 16... Rd8
{[%clk 0:02:10.3]} 17. Qh7+ {[%clk 0:02:00]} 17... Kf8 {[%clk 0:02:09.5]} 18.
Nb3 {[%clk 0:01:59.1]} 18... Qc7 {[%clk 0:02:01.1]} 19. g4 {[%clk 0:01:56.4]}
19... Bd7 {[%clk 0:01:49.2]} 20. g5 {[%clk 0:01:55.8]} 20... hxg5 {[%clk
0:01:46.6]} 21. hxg5 {[%clk 0:01:56.7]} 21... Bxg5 {[%clk 0:01:46.2]} 22. Nd4
{[%clk 0:01:12.7]} 22... Bf6 {[%clk 0:01:36.5]} 23. Be4 {[%clk 0:00:45.4]} 23...
Qc5 {[%clk 0:01:04]} 24. Bxb7 {[%clk 0:00:31.8]} 24... Rab8 {[%clk 0:00:52]} 25.
Nb3 {[%clk 0:00:31.4]} 25... Qe5 {[%clk 0:00:50.8]} 0-1

[Event "Early-Titled-Tuesday-Blitz-September-12-2023"]
[Site "Chess.com"]
[Date "2023.09.12"]
[Round "6"]
[White "ckgchess"]
[Black "FoxOnTheRun97"]
[Result "1-0"]
[WhiteElo "2870"]
[BlackElo "2570"]
[TimeControl "180+1"]
[EndTime "9:05:08 PDT"]
[Termination "ckgchess won by resignation"]

1. e4 {[%clk 0:03:00.9]} 1... c6 {[%clk 0:03:00]} 2. d4 {[%clk 0:03:00.6]} 2...
d5 {[%clk 0:03:00.4]} 3. e5 {[%clk 0:03:01.3]} 3... Bf5 {[%clk 0:02:58.6]} 4. h4
{[%clk 0:03:01.4]} 4... h5 {[%clk 0:02:58.6]} 5. c4 {[%clk 0:03:01.7]} 5... e6
{[%clk 0:02:58.5]} 6. Nc3 {[%clk 0:03:02.1]} 6... Ne7 {[%clk 0:02:57]} 7. Nge2
{[%clk 0:02:58]} 7... Nd7 {[%clk 0:02:52.3]} 8. Ng3 {[%clk 0:02:56.3]} 8... Bg6
{[%clk 0:02:40.7]} 9. Bg5 {[%clk 0:02:56.1]} 9... Qa5 {[%clk 0:02:14.3]} 10. Rc1
{[%clk 0:02:39.6]} 10... dxc4 {[%clk 0:02:05.1]} 11. Bxc4 {[%clk 0:02:39.6]}
11... Nf5 {[%clk 0:02:00.9]} 12. Nxf5 {[%clk 0:02:17.4]} 12... Bxf5 {[%clk
0:02:01.8]} 13. Bd3 {[%clk 0:02:16.7]} 13... Bxd3 {[%clk 0:01:47.6]} 14. Qxd3
{[%clk 0:02:17.6]} 14... Be7 {[%clk 0:01:24.7]} 15. O-O {[%clk 0:02:07.7]} 15...
Rd8 {[%clk 0:01:10.4]} 16. Qe3 {[%clk 0:01:50.2]} 16... Nb6 {[%clk 0:00:54.7]}
17. Ne4 {[%clk 0:01:48.6]} 17... Nd5 {[%clk 0:00:51.5]} 18. Qg3 {[%clk
0:01:40.8]} 18... f6 {[%clk 0:00:44.5]} 19. Bd2 {[%clk 0:01:38.9]} 19... Qxa2
{[%clk 0:00:37.7]} 20. Qxg7 {[%clk 0:01:38.5]} 20... Kd7 {[%clk 0:00:32.5]} 21.
Nxf6+ {[%clk 0:01:07.6]} 21... Kc8 {[%clk 0:00:24.9]} 22. Nxd5 {[%clk
0:01:07.3]} 22... Qxd5 {[%clk 0:00:24.7]} 23. Qxe7 {[%clk 0:01:04.6]} 23... Qxd4
{[%clk 0:00:21.3]} 24. Bg5 {[%clk 0:01:02.4]} 24... Rde8 {[%clk 0:00:18.5]} 25.
Qd6 {[%clk 0:00:53.5]} 25... Qe4 {[%clk 0:00:12.6]} 26. Rfe1 {[%clk 0:00:52.4]}
26... Qa4 {[%clk 0:00:09.6]} 27. Ra1 {[%clk 0:00:49.3]} 1-0

[Event "Early-Titled-Tuesday-Blitz-September-12-2023"]
[Site "Chess.com"]
[Date "2023.09.12"]
[Round "6"]
[White "enestnrvrd"]
[Black "Parhamov"]
[Result "0-1"]
[WhiteElo "2748"]
[BlackElo "3111"]
[TimeControl "180+1"]
[EndTime "9:05:11 PDT"]
[Termination "Parhamov won on time"]

1. d4 {[%clk 0:03:00.9]} 1... Nf6 {[%clk 0:02:59.9]} 2. Nf3 {[%clk 0:03:00.9]}
2... d5 {[%clk 0:02:59.9]} 3. c4 {[%clk 0:03:01.3]} 3... e6 {[%clk 0:02:59.1]}
4. Nc3 {[%clk 0:03:01.8]} 4... dxc4 {[%clk 0:02:58.6]} 5. e4 {[%clk 0:03:01.6]}
5... b5 {[%clk 0:02:59]} 6. e5 {[%clk 0:02:59.9]} 6... Nd5 {[%clk 0:02:59.5]} 7.
Nxb5 {[%clk 0:02:59.9]} 7... Nb6 {[%clk 0:03:00.2]} 8. Be2 {[%clk 0:02:57.7]}
8... Nc6 {[%clk 0:03:00]} 9. Nc3 {[%clk 0:02:56.8]} 9... Bb7 {[%clk 0:02:44.7]}
10. O-O {[%clk 0:02:54.1]} 10... Be7 {[%clk 0:02:40.2]} 11. Qd2 {[%clk
0:02:52.4]} 11... O-O {[%clk 0:02:39.5]} 12. Qf4 {[%clk 0:02:52.2]} 12... Nb4
{[%clk 0:02:39.6]} 13. Rd1 {[%clk 0:02:47.9]} 13... Rb8 {[%clk 0:02:35.5]} 14.
Qg3 {[%clk 0:02:42.1]} 14... Kh8 {[%clk 0:02:35.3]} 15. h4 {[%clk 0:02:41.6]}
15... Nc2 {[%clk 0:02:33.5]} 16. Rb1 {[%clk 0:02:40.8]} 16... Bxf3 {[%clk
0:02:33.3]} 17. Bxf3 {[%clk 0:02:39.1]} 17... Nxd4 {[%clk 0:02:33.7]} 18. Bg5
{[%clk 0:02:26.5]} 18... c5 {[%clk 0:02:30]} 19. Ne4 {[%clk 0:02:25]} 19... f6
{[%clk 0:02:23.9]} 20. Bf4 {[%clk 0:02:16.7]} 20... f5 {[%clk 0:02:02]} 21. Ng5
{[%clk 0:01:37.5]} 21... Bxg5 {[%clk 0:02:01.9]} 22. hxg5 {[%clk 0:01:36.6]}
22... Nd5 {[%clk 0:02:01.6]} 23. Bd2 {[%clk 0:01:22.7]} 23... f4 {[%clk
0:01:56.7]} 24. Qg4 {[%clk 0:01:06.6]} 24... Nxf3+ {[%clk 0:01:35.1]} 25. Qxf3
{[%clk 0:01:05.9]} 25... Qxg5 {[%clk 0:01:34.5]} 26. Re1 {[%clk 0:00:48.7]}
26... Rf5 {[%clk 0:01:28.6]} 27. Re4 {[%clk 0:00:40.1]} 27... Qh4 {[%clk
0:01:06.6]} 28. g3 {[%clk 0:00:11.6]} 28... fxg3 {[%clk 0:01:06]} 29. Rxh4
{[%clk 0:00:03.7]} 29... Rxf3 {[%clk 0:01:05.6]} 30. fxg3 {[%clk 0:00:04.3]}
30... c3 {[%clk 0:01:03.5]} 0-1

[Event "Early-Titled-Tuesday-Blitz-September-12-2023"]
[Site "Chess.com"]
[Date "2023.09.12"]
[Round "6"]
[White "kushbhagat2009"]
[Black "Biregina"]
[Result "1-0"]
[WhiteElo "2622"]
[BlackElo "2434"]
[TimeControl "180+1"]
[EndTime "9:05:12 PDT"]
[Termination "kushbhagat2009 won on time"]

1. d4 {[%clk 0:03:00.9]} 1... d6 {[%clk 0:03:00.6]} 2. Bf4 {[%clk 0:02:59.9]}
2... Nd7 {[%clk 0:02:59.7]} 3. Nf3 {[%clk 0:02:59.1]} 3... Ngf6 {[%clk 0:02:58]}
4. e3 {[%clk 0:02:59.4]} 4... b6 {[%clk 0:02:56.3]} 5. h3 {[%clk 0:02:59.6]}
5... Bb7 {[%clk 0:02:56.9]} 6. c4 {[%clk 0:03:00]} 6... c6 {[%clk 0:02:55.8]} 7.
Nc3 {[%clk 0:03:00.5]} 7... Qc7 {[%clk 0:02:56.4]} 8. Be2 {[%clk 0:03:00.4]}
8... e5 {[%clk 0:02:55.5]} 9. Bh2 {[%clk 0:03:00.8]} 9... Be7 {[%clk 0:02:55.9]}
10. O-O {[%clk 0:03:01.3]} 10... O-O {[%clk 0:02:55.8]} 11. b4 {[%clk
0:03:01.9]} 11... a5 {[%clk 0:02:52.5]} 12. a3 {[%clk 0:03:01.7]} 12... axb4
{[%clk 0:02:52.1]} 13. axb4 {[%clk 0:03:02.6]} 13... Rxa1 {[%clk 0:02:52.2]} 14.
Qxa1 {[%clk 0:03:03.5]} 14... Ra8 {[%clk 0:02:51.5]} 15. Qb2 {[%clk 0:03:04.1]}
15... Qb8 {[%clk 0:02:24.1]} 16. c5 {[%clk 0:02:57]} 16... bxc5 {[%clk
0:02:21.8]} 17. bxc5 {[%clk 0:02:56.6]} 17... dxc5 {[%clk 0:02:05.5]} 18. dxe5
{[%clk 0:02:49.8]} 18... Nd5 {[%clk 0:01:41.9]} 19. Nxd5 {[%clk 0:02:48.7]}
19... cxd5 {[%clk 0:01:31.1]} 20. e6 {[%clk 0:02:48.7]} 20... Qc8 {[%clk
0:01:26.7]} 21. exd7 {[%clk 0:02:48.7]} 21... Qxd7 {[%clk 0:01:27.6]} 22. Rb1
{[%clk 0:02:43.2]} 22... Bc6 {[%clk 0:01:25.8]} 23. Ne5 {[%clk 0:02:43]} 23...
Qe6 {[%clk 0:01:24.8]} 24. Bg4 {[%clk 0:01:52.7]} 24... Qf6 {[%clk 0:01:05]} 25.
Bg3 {[%clk 0:01:34.6]} 25... Be8 {[%clk 0:00:55.4]} 26. Qb7 {[%clk 0:01:28.6]}
26... Rd8 {[%clk 0:00:40.1]} 27. Bf3 {[%clk 0:01:10.5]} 27... Qe6 {[%clk
0:00:09.7]} 28. Rb6 {[%clk 0:01:05.1]} 28... Qf5 {[%clk 0:00:06.2]} 29. Qxe7
{[%clk 0:01:00.9]} 1-0

[Event "Early-Titled-Tuesday-Blitz-September-12-2023"]
[Site "Chess.com"]
[Date "2023.09.12"]
[Round "6"]
[White "Ducke13"]
[Black "Gyulamiryan-koryun"]
[Result "1-0"]
[WhiteElo "2472"]
[BlackElo "2029"]
[TimeControl "180+1"]
[EndTime "9:05:13 PDT"]
[Termination "Ducke13 won by resignation"]

1. d4 {[%clk 0:02:57.2]} 1... Nf6 {[%clk 0:02:58.7]} 2. g3 {[%clk 0:02:57.4]}
2... g6 {[%clk 0:02:56.5]} 3. Bg2 {[%clk 0:02:57.5]} 3... Bg7 {[%clk 0:02:56.8]}
4. e4 {[%clk 0:02:58.2]} 4... d6 {[%clk 0:02:52.1]} 5. Ne2 {[%clk 0:02:57.7]}
5... O-O {[%clk 0:02:47.6]} 6. O-O {[%clk 0:02:58]} 6... c6 {[%clk 0:02:44]} 7.
a4 {[%clk 0:02:57.4]} 7... Nbd7 {[%clk 0:02:35.2]} 8. Nbc3 {[%clk 0:02:56]} 8...
a5 {[%clk 0:02:33.1]} 9. h3 {[%clk 0:02:55.5]} 9... Nb6 {[%clk 0:02:32.2]} 10.
b3 {[%clk 0:02:54.4]} 10... e5 {[%clk 0:02:23.1]} 11. Be3 {[%clk 0:02:54.2]}
11... exd4 {[%clk 0:02:20.1]} 12. Bxd4 {[%clk 0:02:54]} 12... c5 {[%clk
0:02:16.5]} 13. Be3 {[%clk 0:02:52.9]} 13... Bd7 {[%clk 0:02:03.4]} 14. Qxd6
{[%clk 0:02:49.2]} 14... Rc8 {[%clk 0:01:47.4]} 15. Rad1 {[%clk 0:02:27.8]}
15... Bc6 {[%clk 0:01:40.4]} 16. Qxd8 {[%clk 0:02:13.2]} 16... Rfxd8 {[%clk
0:01:33.8]} 17. Bxc5 {[%clk 0:02:11.8]} 17... Rxd1 {[%clk 0:01:30.6]} 18. Rxd1
{[%clk 0:02:11.8]} 18... Nbd7 {[%clk 0:01:24.3]} 19. Bd4 {[%clk 0:02:05.1]}
19... Re8 {[%clk 0:01:12.5]} 20. f4 {[%clk 0:01:37.2]} 20... Kf8 {[%clk
0:01:02.1]} 21. e5 {[%clk 0:01:34]} 21... Ng8 {[%clk 0:00:51.5]} 22. Bxc6 {[%clk
0:01:28.3]} 22... bxc6 {[%clk 0:00:48.2]} 23. Bf2 {[%clk 0:01:24.2]} 23... Nb8
{[%clk 0:00:33.4]} 24. Bc5+ {[%clk 0:01:10.8]} 24... Ne7 {[%clk 0:00:32.2]} 25.
Ne4 {[%clk 0:01:10.2]} 25... Kg8 {[%clk 0:00:27.9]} 26. Bxe7 {[%clk 0:01:06.7]}
26... Rxe7 {[%clk 0:00:24.8]} 27. Rd8+ {[%clk 0:01:06.9]} 27... Bf8 {[%clk
0:00:23.5]} 28. Rxb8 {[%clk 0:01:03.3]} 28... Kg7 {[%clk 0:00:20.9]} 29. Nf6
{[%clk 0:00:59.9]} 29... g5 {[%clk 0:00:17]} 30. Nd4 {[%clk 0:00:58.4]} 30...
gxf4 {[%clk 0:00:16.3]} 31. gxf4 {[%clk 0:00:59.3]} 31... Rc7 {[%clk 0:00:13.9]}
32. Ne8+ {[%clk 0:00:58.5]} 32... Kg6 {[%clk 0:00:09.7]} 33. Nxc7 {[%clk
0:00:59.4]} 1-0

[Event "Early-Titled-Tuesday-Blitz-September-12-2023"]
[Site "Chess.com"]
[Date "2023.09.12"]
[Round "6"]
[White "DopplerCharlotteDeWitte"]
[Black "skoularikii"]
[Result "1-0"]
[WhiteElo "2680"]
[BlackElo "2529"]
[TimeControl "180+1"]
[EndTime "9:05:20 PDT"]
[Termination "DopplerCharlotteDeWitte won by resignation"]

1. e4 {[%clk 0:03:00.9]} 1... e5 {[%clk 0:02:58.9]} 2. Nf3 {[%clk 0:03:01.4]}
2... Nc6 {[%clk 0:02:56.7]} 3. d4 {[%clk 0:03:02.3]} 3... exd4 {[%clk
0:02:56.6]} 4. Nxd4 {[%clk 0:03:03.2]} 4... Bc5 {[%clk 0:02:55.7]} 5. Nb3 {[%clk
0:03:02.9]} 5... Bb6 {[%clk 0:02:56]} 6. Nc3 {[%clk 0:03:03.3]} 6... Nge7 {[%clk
0:02:55.8]} 7. a4 {[%clk 0:03:02.4]} 7... a5 {[%clk 0:02:55.1]} 8. Nd5 {[%clk
0:03:02.4]} 8... Nxd5 {[%clk 0:02:54.3]} 9. exd5 {[%clk 0:03:00.5]} 9... Ne5
{[%clk 0:02:46.8]} 10. d6 {[%clk 0:02:54.3]} 10... Qf6 {[%clk 0:02:35.4]} 11. f4
{[%clk 0:02:42.2]} 11... O-O {[%clk 0:02:24.3]} 12. Be2 {[%clk 0:02:18.3]} 12...
Re8 {[%clk 0:02:23.7]} 13. Qd5 {[%clk 0:01:58.6]} 13... Nc6 {[%clk 0:02:13.7]}
14. Bd2 {[%clk 0:01:49.4]} 14... Qxb2 {[%clk 0:01:57]} 15. c3 {[%clk 0:01:20.9]}
15... Qc2 {[%clk 0:01:38.2]} 16. Rc1 {[%clk 0:01:07.5]} 16... Qe4 {[%clk
0:01:25.4]} 17. Qxe4 {[%clk 0:01:07.3]} 17... Rxe4 {[%clk 0:01:26.3]} 18. Kd1
{[%clk 0:01:08.1]} 18... Rxa4 {[%clk 0:01:20.3]} 19. Bd3 {[%clk 0:01:01.4]}
19... cxd6 {[%clk 0:01:16.1]} 20. Re1 {[%clk 0:00:59.6]} 20... Kf8 {[%clk
0:01:14.9]} 21. Kc2 {[%clk 0:00:38.2]} 21... Na7 {[%clk 0:00:46.4]} 22. Re2
{[%clk 0:00:32.8]} 22... g6 {[%clk 0:00:36.2]} 23. f5 {[%clk 0:00:27.5]} 23...
Kg7 {[%clk 0:00:36.6]} 24. f6+ {[%clk 0:00:21.4]} 24... Kxf6 {[%clk 0:00:35.8]}
25. Rf1+ {[%clk 0:00:21.9]} 25... Kg7 {[%clk 0:00:31.3]} 26. Re7 {[%clk
0:00:21.5]} 26... Ra2+ {[%clk 0:00:29.7]} 27. Kb1 {[%clk 0:00:18.5]} 27... Rc2
{[%clk 0:00:29.9]} 28. Rexf7+ {[%clk 0:00:17.6]} 1-0

[Event "Early-Titled-Tuesday-Blitz-September-12-2023"]
[Site "Chess.com"]
[Date "2023.09.12"]
[Round "6"]
[White "BlitzWizard04"]
[Black "TimofeevAr"]
[Result "1/2-1/2"]
[WhiteElo "2627"]
[BlackElo "2836"]
[TimeControl "180+1"]
[EndTime "9:05:21 PDT"]
[Termination "Game drawn by repetition"]

1. e4 {[%clk 0:03:00.9]} 1... e6 {[%clk 0:02:59.3]} 2. d4 {[%clk 0:03:00.8]}
2... d5 {[%clk 0:02:59.3]} 3. Nc3 {[%clk 0:03:01.7]} 3... dxe4 {[%clk
0:02:58.7]} 4. Nxe4 {[%clk 0:03:01]} 4... Nd7 {[%clk 0:02:59.2]} 5. g3 {[%clk
0:03:00.4]} 5... b6 {[%clk 0:02:56.9]} 6. Bg2 {[%clk 0:02:54.7]} 6... Rb8 {[%clk
0:02:56.9]} 7. Nf3 {[%clk 0:02:52]} 7... Bb7 {[%clk 0:02:56.8]} 8. Qe2 {[%clk
0:02:52.6]} 8... Ngf6 {[%clk 0:02:54.3]} 9. Nxf6+ {[%clk 0:02:45.9]} 9... Nxf6
{[%clk 0:02:50.5]} 10. O-O {[%clk 0:02:46.8]} 10... Be7 {[%clk 0:02:49.8]} 11.
Ne5 {[%clk 0:02:46.5]} 11... Bxg2 {[%clk 0:02:47.9]} 12. Kxg2 {[%clk 0:02:47.4]}
12... Qd5+ {[%clk 0:02:45.5]} 13. Qf3 {[%clk 0:02:43.4]} 13... Qxf3+ {[%clk
0:02:25.5]} 14. Kxf3 {[%clk 0:02:44.3]} 14... Bd6 {[%clk 0:02:25.6]} 15. Bf4
{[%clk 0:02:42.1]} 15... Nd5 {[%clk 0:02:20.8]} 16. c4 {[%clk 0:02:42.7]} 16...
Nxf4 {[%clk 0:02:20.3]} 17. gxf4 {[%clk 0:02:43.6]} 17... Ra8 {[%clk 0:02:14.1]}
18. Rac1 {[%clk 0:02:39.2]} 18... f6 {[%clk 0:02:13.1]} 19. Nd3 {[%clk
0:02:38.8]} 19... c5 {[%clk 0:02:11.9]} 20. dxc5 {[%clk 0:02:35.9]} 20... bxc5
{[%clk 0:02:11.8]} 21. b4 {[%clk 0:02:36.6]} 21... Rc8 {[%clk 0:02:08.1]} 22.
bxc5 {[%clk 0:02:29]} 22... Bxc5 {[%clk 0:02:08.2]} 23. Rfe1 {[%clk 0:02:26.5]}
23... Kf7 {[%clk 0:02:07.8]} 24. Rb1 {[%clk 0:02:25.2]} 24... Rhe8 {[%clk
0:02:05.6]} 25. Rb7+ {[%clk 0:02:17.6]} 25... Re7 {[%clk 0:02:05.5]} 26. Reb1
{[%clk 0:02:16.9]} 26... Bb6 {[%clk 0:01:45.2]} 27. Rxe7+ {[%clk 0:02:16.5]}
27... Kxe7 {[%clk 0:01:44.6]} 28. c5 {[%clk 0:02:17.4]} 28... Bxc5 {[%clk
0:01:44.4]} 29. Nxc5 {[%clk 0:02:16]} 29... Rxc5 {[%clk 0:01:43.9]} 30. Rb7+
{[%clk 0:02:16.9]} 30... Kf8 {[%clk 0:01:37.4]} 31. Rxa7 {[%clk 0:02:17.4]}
31... Rc3+ {[%clk 0:01:32.1]} 32. Kg2 {[%clk 0:02:17.4]} 32... h5 {[%clk
0:01:29]} 33. a4 {[%clk 0:02:17.2]} 33... Kg8 {[%clk 0:01:28.4]} 34. h4 {[%clk
0:02:16.2]} 34... Kh7 {[%clk 0:01:28.2]} 35. f3 {[%clk 0:02:14.2]} 35... Kg6
{[%clk 0:01:26.8]} 36. Kg3 {[%clk 0:02:14.6]} 36... Ra3 {[%clk 0:01:26.2]} 37.
a5 {[%clk 0:02:11]} 37... Ra4 {[%clk 0:01:24.4]} 38. Re7 {[%clk 0:02:08.9]}
38... Kf5 {[%clk 0:01:23.8]} 39. Rxg7 {[%clk 0:02:05.9]} 39... Rxa5 {[%clk
0:01:24]} 40. Rh7 {[%clk 0:02:02.5]} 40... Kg6 {[%clk 0:01:23.6]} 41. Re7 {[%clk
0:02:03.2]} 41... Ra6 {[%clk 0:01:23.7]} 42. Re8 {[%clk 0:02:01.4]} 42... Rb6
{[%clk 0:01:20.6]} 43. Rg8+ {[%clk 0:02:01.1]} 43... Kf5 {[%clk 0:01:20.4]} 44.
Rh8 {[%clk 0:02:01]} 44... Kg6 {[%clk 0:01:20.7]} 45. Rg8+ {[%clk 0:02:01.7]}
45... Kh7 {[%clk 0:01:19.4]} 46. Re8 {[%clk 0:01:59]} 46... Kg7 {[%clk
0:01:19.2]} 47. Rc8 {[%clk 0:01:55.4]} 47... Rb1 {[%clk 0:01:16.1]} 48. Rc7+
{[%clk 0:01:52.4]} 48... Kg6 {[%clk 0:01:15.4]} 49. Rc6 {[%clk 0:01:53.1]} 49...
Re1 {[%clk 0:01:09.8]} 50. Kf2 {[%clk 0:01:50.7]} 50... Rh1 {[%clk 0:01:09.5]}
51. Rxe6 {[%clk 0:01:44.2]} 51... Rxh4 {[%clk 0:01:08.9]} 52. Kg3 {[%clk
0:01:44.7]} 52... Rh1 {[%clk 0:01:09]} 53. Ra6 {[%clk 0:01:43.1]} 53... Rg1+
{[%clk 0:01:05.9]} 54. Kf2 {[%clk 0:01:41.7]} 54... Rb1 {[%clk 0:01:05]} 55. Kg3
{[%clk 0:01:41.6]} 55... Rb5 {[%clk 0:01:00.3]} 56. Ra8 {[%clk 0:01:40.1]} 56...
Kf5 {[%clk 0:00:58.3]} 57. Rh8 {[%clk 0:01:39.6]} 57... Ke6 {[%clk 0:00:58.3]}
58. Kh4 {[%clk 0:01:37.7]} 58... Rf5 {[%clk 0:00:57.7]} 59. Rxh5 {[%clk
0:01:35.7]} 59... Rxf4+ {[%clk 0:00:56.7]} 60. Kg3 {[%clk 0:01:35.9]} 60... Ra4
{[%clk 0:00:56.7]} 61. Rb5 {[%clk 0:01:35.7]} 61... Rc4 {[%clk 0:00:56.5]} 62.
Rb6+ {[%clk 0:01:35.8]} 62... Ke5 {[%clk 0:00:55.4]} 63. Rb5+ {[%clk 0:01:33]}
63... Ke6 {[%clk 0:00:55.7]} 64. Rb6+ {[%clk 0:01:33.3]} 64... Ke5 {[%clk
0:00:56.1]} 65. Rb5+ {[%clk 0:01:32]} 65... Ke6 {[%clk 0:00:56.1]} 1/2-1/2

[Event "Early-Titled-Tuesday-Blitz-September-12-2023"]
[Site "Chess.com"]
[Date "2023.09.12"]
[Round "6"]
[White "FARIZA2018"]
[Black "stollenmonster"]
[Result "0-1"]
[WhiteElo "2525"]
[BlackElo "2820"]
[TimeControl "180+1"]
[EndTime "9:05:26 PDT"]
[Termination "stollenmonster won on time"]

1. e4 {[%clk 0:03:00.9]} 1... c5 {[%clk 0:02:57.9]} 2. Nf3 {[%clk 0:03:01.1]}
2... Nf6 {[%clk 0:02:57.2]} 3. e5 {[%clk 0:02:58.9]} 3... Nd5 {[%clk 0:02:57.3]}
4. d4 {[%clk 0:02:57.4]} 4... cxd4 {[%clk 0:02:57.2]} 5. Nxd4 {[%clk 0:02:55.7]}
5... Nc6 {[%clk 0:02:56.7]} 6. Nxc6 {[%clk 0:02:51.4]} 6... bxc6 {[%clk
0:02:57.6]} 7. Bc4 {[%clk 0:02:50.4]} 7... Nb6 {[%clk 0:02:56.2]} 8. Bb3 {[%clk
0:02:36.6]} 8... g6 {[%clk 0:02:56.3]} 9. O-O {[%clk 0:02:35.9]} 9... Bg7 {[%clk
0:02:56.5]} 10. f4 {[%clk 0:02:33.5]} 10... O-O {[%clk 0:02:55]} 11. Nc3 {[%clk
0:02:33.4]} 11... d6 {[%clk 0:02:55]} 12. exd6 {[%clk 0:02:28.8]} 12... exd6
{[%clk 0:02:55.5]} 13. Be3 {[%clk 0:02:28.7]} 13... c5 {[%clk 0:02:51]} 14. Bd5
{[%clk 0:01:49.4]} 14... Rb8 {[%clk 0:02:45.1]} 15. Rb1 {[%clk 0:01:40.6]} 15...
Re8 {[%clk 0:02:37.6]} 16. Bf2 {[%clk 0:01:36.6]} 16... Nxd5 {[%clk 0:02:21.6]}
17. Qxd5 {[%clk 0:01:19.7]} 17... Be6 {[%clk 0:02:16.5]} 18. Qd2 {[%clk
0:01:18.6]} 18... Bf5 {[%clk 0:02:03.3]} 19. Rfd1 {[%clk 0:01:09.2]} 19... Qa5
{[%clk 0:01:46.4]} 20. Nd5 {[%clk 0:00:46.3]} 20... Qxa2 {[%clk 0:01:40.8]} 21.
Rdc1 {[%clk 0:00:13.8]} 21... Qc4 {[%clk 0:01:34.4]} 22. b3 {[%clk 0:00:09.1]}
22... Qe4 {[%clk 0:01:33.3]} 23. Nc3 {[%clk 0:00:08.5]} 23... Qb4 {[%clk
0:01:31.9]} 24. Be1 {[%clk 0:00:06.7]} 24... Rxe1+ {[%clk 0:01:30.7]} 25. Qxe1
{[%clk 0:00:06.7]} 25... Bxc3 {[%clk 0:01:30]} 26. Qe7 {[%clk 0:00:06.7]} 26...
Qxf4 {[%clk 0:01:25.6]} 27. Rf1 {[%clk 0:00:06.2]} 27... Qe5 {[%clk 0:01:18.4]}
28. Qxa7 {[%clk 0:00:06]} 28... Re8 {[%clk 0:01:17.7]} 29. Rbd1 {[%clk
0:00:05.4]} 29... h5 {[%clk 0:01:12.8]} 30. Kh1 {[%clk 0:00:05.5]} 30... h4
{[%clk 0:01:12.5]} 31. h3 {[%clk 0:00:04.9]} 31... Qg3 {[%clk 0:01:04.3]} 32.
Rf3 {[%clk 0:00:02.5]} 32... Re1+ {[%clk 0:01:04.1]} 33. Rxe1 {[%clk 0:00:02.7]}
33... Qxe1+ {[%clk 0:01:04.4]} 0-1

[Event "Early-Titled-Tuesday-Blitz-September-12-2023"]
[Site "Chess.com"]
[Date "2023.09.12"]
[Round "6"]
[White "Mikedannnn"]
[Black "MaxLeto"]
[Result "1-0"]
[WhiteElo "2558"]
[BlackElo "2391"]
[TimeControl "180+1"]
[EndTime "9:05:27 PDT"]
[Termination "Mikedannnn won by checkmate"]

1. e4 {[%clk 0:02:58.8]} 1... c5 {[%clk 0:02:59.5]} 2. Nf3 {[%clk 0:02:58.6]}
2... d6 {[%clk 0:03:00.1]} 3. d4 {[%clk 0:02:58.4]} 3... cxd4 {[%clk 0:03:01]}
4. Nxd4 {[%clk 0:02:59.3]} 4... Nf6 {[%clk 0:03:01.9]} 5. Nc3 {[%clk 0:03:00]}
5... a6 {[%clk 0:03:02.5]} 6. f4 {[%clk 0:02:59.3]} 6... b5 {[%clk 0:03:01.9]}
7. e5 {[%clk 0:02:56.8]} 7... d5 {[%clk 0:03:01.7]} 8. exf6 {[%clk 0:02:56.2]}
8... gxf6 {[%clk 0:02:50.8]} 9. Nf3 {[%clk 0:02:53.2]} 9... Bb7 {[%clk 0:02:49]}
10. Be3 {[%clk 0:02:47.5]} 10... e6 {[%clk 0:02:46.2]} 11. Bd3 {[%clk
0:02:35.7]} 11... f5 {[%clk 0:02:44.5]} 12. Ne2 {[%clk 0:02:30.3]} 12... Rg8
{[%clk 0:02:41.8]} 13. O-O {[%clk 0:02:29.6]} 13... Qf6 {[%clk 0:02:39.3]} 14.
Ne5 {[%clk 0:02:15.6]} 14... Nc6 {[%clk 0:02:30.7]} 15. Nxc6 {[%clk 0:02:14]}
15... Bxc6 {[%clk 0:02:31.6]} 16. Nd4 {[%clk 0:02:09.1]} 16... Bb7 {[%clk
0:02:26.9]} 17. Qd2 {[%clk 0:02:00.3]} 17... Bc5 {[%clk 0:02:26]} 18. c3 {[%clk
0:02:00.5]} 18... Rc8 {[%clk 0:02:21.2]} 19. Nf3 {[%clk 0:01:53.9]} 19... Bd6
{[%clk 0:02:18.9]} 20. Bd4 {[%clk 0:01:50.6]} 20... Qg6 {[%clk 0:02:18.6]} 21.
Ne5 {[%clk 0:01:49.8]} 21... Qh6 {[%clk 0:02:15.8]} 22. Rae1 {[%clk 0:01:33.3]}
22... f6 {[%clk 0:02:15]} 23. Ng4 {[%clk 0:00:24.6]} 23... fxg4 {[%clk
0:01:46.6]} 24. Rxe6+ {[%clk 0:00:23.1]} 24... Kd7 {[%clk 0:01:47.2]} 25. Rxf6
{[%clk 0:00:23]} 25... Qh5 {[%clk 0:01:38.2]} 26. Bf5+ {[%clk 0:00:22.5]} 26...
Kc7 {[%clk 0:01:35.6]} 27. Bb6+ {[%clk 0:00:21.3]} 27... Kxb6 {[%clk 0:00:58.7]}
28. Rxd6+ {[%clk 0:00:20.9]} 28... Rc6 {[%clk 0:00:58.2]} 29. Rxd5 {[%clk
0:00:17]} 29... Qf7 {[%clk 0:00:54.4]} 30. Qd4+ {[%clk 0:00:17.3]} 30... Ka5
{[%clk 0:00:44.1]} 31. b4+ {[%clk 0:00:16.4]} 31... Ka4 {[%clk 0:00:44.7]} 32.
Qd1+ {[%clk 0:00:17]} 32... Ka3 {[%clk 0:00:38.6]} 33. Qb3# {[%clk 0:00:17.9]}
1-0